{"text_format":"3","workbook":"xlsx","n_sheets":2,"sheets":["Hoofdmenu","Evenementen"],"not_rendered":{"macros":1,"defined_names":1},"read":"whole","date_system":"1900"}

{"sheet":"Hoofdmenu","index":0,"n_rows":39,"n_cols":10,"rows_kept":39,"merged":[[1,2,1,3],[1,4,1,5],[3,2,3,3]]}
[4]
[null,null,"PASGEMIDDELDE:",null,{"$f":"SUM(I2/H2)","v":{"v":162.96363636363637,"d":"162.96"}},null,null,{"$f":"SUM(H5:H14)","v":220},{"$f":"SUM(I5:I14)","v":35852}]
[]
[null,null,"Omschrijving",null,"Factor","Games","Pinfall","Factor Games","Factor Pinfall","Gem."]
[null,null,1,"Huisleague donderdag",1,60,9543,{"$f":"IF(D5<>\"\",SUM(E5*F5),\"\")","v":60},{"$f":"IF(D5<>\"\",SUM(E5*G5),\"\")","v":9543},{"$f":"IF($F5<>\"\",SUM($I5/$H5),\"\")","v":159.05}]
[null,null,2,"Huisleague woensdag",1,52,8781,{"$f":"IF(D6<>\"\",SUM(E6*F6),\"\")","v":52},{"$f":"IF(D6<>\"\",SUM(E6*G6),\"\")","v":8781},{"v":168.8653846153846,"d":"168.87"}]
[null,null,3,"Regionale league",4,15,2398,60,9592,{"v":159.86666666666667,"d":"159.87"}]
[null,null,4,"Verenigingskampioenschappen",4,12,1984,48,7936,{"v":165.33333333333334,"d":"165.33"}]
[null,null,5,"Toernooi",4,null,null,0,0,""]
[null,null,6,{"$nulls":4},"","",{"$f":"IF($F10<>\"\",SUM($I10/$H10),\"\")","v":""}]
[null,null,7,{"$nulls":4},"","",{"$f":"IF($F11<>\"\",SUM($I11/$H11),\"\")","v":""}]
[null,null,8,{"$nulls":4},"","",""]
[null,null,9,{"$nulls":4},"","",""]
[null,null,10,{"$nulls":4},"","",""]
[]
[null,null,"Algemeen:"]
[null,null,"U kunt maximaal 10 leagues/evenementen opgeven."]
[]
[null,null,"Toevoegen league/evenement:"]
[null,null,"Klik op een lege regel onder \"Omschrijving\" en maak uit de getoonde lijst uw keuze."]
[null,null,"De vermeningvuldigingsfactor wordt automatisch toegevoegd."]
[]
[null,null,"Verwijderen league/evenement:"]
[null,null,"Klik 1x op het te verwijderen item en druk op de \"Delete' toets. Klik hierna op \"Updaten\"."]
[]
[null,null,"Invullen scores:"]
[null,null,"Vul onder de kolommen \"Games\" en \"Pinfall\" de behaalde scores in. Klik nu op \"Updaten data\"."]
[null,null,"In de kolommen \"Nw Games' en Nw Pinfall\" komen automatisch de scores voor het berekenen van"]
[null,null,"het nieuwe pasgemiddelde. Bovenaan ziet u het pasgemiddelde, berekend over alle"]
[null,null,"ingevulde leagues/evenementen, conform de berekeningsmethode van het N.B.F."]
[]
[null,null,"Toelichting:"]
[null,null,"U kunt slechts maximaal 5 pins gemiddeld zakken voor het nieuwe seizoen. Stijgen kan echter onbeperkt."]
[]
[null,null,"Sluiten:"]
[null,null,"Bij het afsluiten worden alle mutaties automatisch opgeslagen."]
[]
[null,null,"Wissen resultaten:"]
[null,null,"Klik op de knop \"Wissen Resultaten\" om een nieuw/leeg seizoen te kunnen beginnen."]

{"sheet":"Evenementen","index":1,"n_rows":11,"n_cols":1,"rows_kept":11,"hidden":true}
[]
["Huisleague maandag"]
["Huisleague dinsdag"]
["Huisleague woensdag"]
["Huisleague donderdag"]
["Huisleague vrijdag"]
["Huisleague invaller"]
["Nationale league"]
["Regionale league"]
["Verenigingskampioenschappen"]
["Toernooi"]